bitfinex/quotes_BTCUSD_20220211
["timestamp","ask_amount","ask_price","bid_price","bid_amount"]
[1644623508903,0.05944582,42461.0,42456.0,0.11783317]
[1644623509101,0.00052782,42461.0,42457.0,0.058915]
[1644623509501,0.08445368,42462.0,42457.0,0.058915]
[1644623509702,0.00052782,42461.0,42457.0,0.058915]
[1644623510702,0.0011,42466.0,42459.0,0.05891124]
[1644623510950,0.00052782,42461.0,42460.0,0.058912]
[1644623511948,0.058915,42463.0,42460.0,0.058912]
[1644623512150,0.00052781,42463.0,42460.0,0.058912]
[1644623513151,0.0011,42466.0,42460.0,0.058912]
[1644623513351,0.00052781,42464.0,42460.0,0.058912]
[1644623514352,0.0011,42466.0,42460.0,0.058912]
[1644623514596,0.058913,42463.0,42460.0,0.058912]
[1644623517804,0.26460225,42463.0,42460.0,0.058912]
[1644623518103,0.26460225,42463.0,42456.0,0.11785]
[1644623518104,0.34848094,42462.0,42456.0,0.11785]
[1644623518352,0.34848094,42462.0,42446.0,0.1]
[1644623518354,0.45470894,42462.0,42446.0,0.1]
[1644623518544,0.45470894,42462.0,42443.0,0.3962]
[1644623518545,0.45470894,42462.0,42445.0,0.4329]
[1644623518743,0.45470894,42462.0,42445.0,0.3329]
[1644623518945,0.21586462,42457.0,42445.0,0.4329]
[1644623519144,0.21586462,42457.0,42445.0,0.1]
[1644623519145,0.058927,42453.0,42445.0,0.1]
[1644623519349,0.058927,42453.0,42451.0,0.058936]
[1644623519350,0.106227,42453.0,42451.0,0.058936]
[1644623520447,0.0473,42453.0,42451.0,0.058936]
[1644623522295,0.106226,42453.0,42451.0,0.058936]
[1644623524299,0.096226,42453.0,42451.0,0.058936]
[1644623528048,0.058926,42453.0,42451.0,0.058936]
[1644623534147,0.038926,42453.0,42451.0,0.058936]
[1644623536348,0.038926,42453.0,42451.0,0.05885717]
[1644623536951,0.038926,42453.0,42446.0,0.117878]
[1644623536952,0.0473,42452.0,42446.0,0.117878]
[1644623537204,0.27889038,42450.0,42443.0,0.3962]
[1644623537406,0.0473,42449.0,42440.0,0.51362802]
[1644623537604,0.0473,42449.0,42440.0,0.39622802]
[1644623538003,0.07405639,42443.0,42440.0,0.00052802]
[1644623538403,0.07405639,42443.0,42439.0,0.0589399]
[1644623538604,0.07405639,42443.0,42439.0,0.05946786]
[1644623539605,0.07405639,42443.0,42439.0,0.0589399]
[1644623539804,0.07405639,42443.0,42439.0,0.11840586]
[1644623540008,0.07405639,42443.0,42441.0,0.058942]
[1644623540205,0.13299539,42443.0,42441.0,0.058942]
[1644623540606,0.13299539,42443.0,42441.0,0.1178803]
[1644623540860,0.0473,42446.0,42441.0,0.1178803]
[1644623541052,0.0473,42446.0,42441.0,0.058942]
[1644623541453,0.106235,42446.0,42442.0,0.058936]
[1644623542252,0.08194534,42444.0,42442.0,0.058936]
[1644623542451,0.14088534,42444.0,42442.0,0.058936]
[1644623543654,0.05894,42444.0,42442.0,0.058936]
[1644623553304,0.44412154,42443.0,42441.0,0.058942]
[1644623553604,0.31260786,42442.0,42441.0,0.058942]
[1644623553802,0.0473,42442.0,42441.0,0.058942]
[1644623557851,0.0473,42442.0,42441.0,0.05887758]
[1644623561299,0.0473,42442.0,42439.0,0.058953]
[1644623561503,0.0473,42442.0,42439.0,0.05948096]
[1644623561700,0.08457293,42441.0,42439.0,0.05948096]
[1644623562300,0.14352093,42441.0,42439.0,0.05948096]
[1644623562504,0.14352093,42441.0,42439.0,0.058953]
[1644623566949,0.058948,42441.0,42439.0,0.058953]
[1644623567396,0.058948,42441.0,42439.0,0.11789367]
[1644623567896,0.058948,42441.0,42439.0,0.058953]
[1644623569118,0.058948,42441.0,42439.0,0.11789292]
[1644623570298,0.058948,42441.0,42439.0,0.058953]
[1644623571650,0.058939,42443.0,42439.0,0.11789404]
[1644623572146,0.058939,42443.0,42439.0,0.05948096]
[1644623573144,0.058939,42443.0,42439.0,0.058953]
[1644623573346,0.058939,42443.0,42439.0,0.05948096]
[1644623575596,0.058939,42443.0,42439.0,0.058953]
[1644623575795,0.058939,42443.0,42439.0,0.05948096]
[1644623576801,0.058939,42443.0,42439.0,0.058953]
[1644623576999,0.058939,42443.0,42439.0,0.05948096]
[1644623579246,0.058939,42443.0,42439.0,0.058953]
[1644623579549,0.058939,42443.0,42439.0,0.05948096]
[1644623580448,0.058939,42443.0,42439.0,0.058953]
[1644623580648,0.058939,42443.0,42439.0,0.05938603]
[1644623581546,0.058939,42443.0,42439.0,0.05885807]
[1644623581748,0.058939,42443.0,42439.0,0.05938603]
[1644623582802,0.18551987,42444.0,42439.0,0.05885807]
[1644623582803,0.058951,42441.0,42439.0,0.05885807]
[1644623583001,0.058951,42441.0,42439.0,0.05938603]
[1644623584002,0.058951,42441.0,42439.0,0.05885807]
[1644623586051,0.058951,42441.0,42438.0,0.00052796]
[1644623586252,0.058959,42439.0,42438.0,0.00052796]
[1644623586451,0.106259,42439.0,42428.0,0.3925]
[1644623586651,0.06780311,42436.0,42432.0,0.058964]
[1644623586852,0.29537108,42435.0,42432.0,0.058964]
[1644623587056,0.35433208,42435.0,42432.0,0.058964]
[1644623587455,0.35433408,42435.0,42426.0,0.00022744]
[1644623587655,0.05,42434.0,42425.0,0.00022744]
[1644623587854,0.0473,42433.0,42421.0,0.00022744]
[1644623588052,0.14442713,42432.0,42422.0,0.058974]
[1644623588252,0.0473,42431.0,42422.0,0.058974]
[1644623588453,0.25527324,42429.0,42422.0,0.058974]
[1644623588654,0.058974,42427.0,42422.0,0.058974]
[1644623588854,0.0473,42426.0,42422.0,0.058974]
[1644623589056,0.0473,42426.0,42423.0,0.00048564]
[1644623589253,0.0973,42426.0,42423.0,0.00071308]
[1644623589455,0.0473,42426.0,42423.0,0.05968508]
[1644623589710,0.0473,42426.0,42423.0,0.05945764]
[1644623589914,0.058958,42431.0,42426.0,0.09459999]
[1644623590110,0.0473,42430.0,42426.0,0.09459999]
[1644623590509,0.0473,42430.0,42426.0,0.35399953]
[1644623590709,0.0473,42430.0,42426.0,0.41295853]
[1644623590908,0.0473,42430.0,42426.0,0.15355899]
[1644623590909,0.05896,42429.0,42426.0,0.15355899]
[1644623591711,0.05896,42429.0,42426.0,0.15378643]
[1644623592710,0.05896,42429.0,42426.0,0.15355899]
[1644623592912,0.05896,42429.0,42426.0,0.15378643]
[1644623593950,0.05896,42429.0,42426.0,0.15355899]
[1644623594148,0.05896,42429.0,42426.0,0.15378643]
[1644623594351,0.29920333,42428.0,42426.0,0.09482743]
[1644623594550,0.058973,42427.0,42426.0,0.09459999]
[1644623596956,0.35668139,42427.0,42426.0,0.09459999]
[1644623601354,0.40668139,42427.0,42426.0,0.09459999]
[1644623612701,0.40668139,42427.0,42425.0,0.00022744]
[1644623612702,0.65,42426.0,42425.0,0.00022744]
[1644623612902,0.65,42426.0,42411.0,0.5497]
[1644623612903,0.058982,42425.0,42421.0,0.00022744]
[1644623613103,0.65,42424.0,42411.0,0.02868203]
[1644623613307,0.44480558,42423.0,42411.0,0.02868203]
[1644623613501,0.13476011,42422.0,42411.0,0.02868203]
[1644623613703,0.25154687,42419.0,42411.0,0.02868203]
[1644623613908,0.07132028,42412.0,42411.0,0.02868203]
[1644623617349,0.058984,42413.0,42411.0,0.02868203]
[1644623617753,0.2203415,42430.0,42411.0,0.02868203]
[1644623617754,0.0473,42421.0,42411.0,0.02868203]
[1644623617955,0.98724,42426.0,42411.0,0.02868203]
[1644623618152,0.98724,42426.0,42411.0,0.02891051]
[1644623618554,0.06302338,42419.0,42412.0,0.19945318]
[1644623618852,0.06302338,42419.0,42413.0,0.34222477]
[1644623619053,0.06302338,42419.0,42414.0,0.05897421]
[1644623619253,0.12199638,42419.0,42414.0,0.05920269]
[1644623620002,0.12199638,42419.0,42415.0,0.058975]
[1644623620206,0.98724,42426.0,42416.0,0.34645091]
[1644623620207,0.06064,42426.0,42416.0,0.34645091]
[1644623620402,0.06064,42426.0,42418.0,0.05]
[1644623620601,0.06064,42426.0,42418.0,0.167908]
[1644623620800,0.06064,42426.0,42418.0,0.16813648]
[1644623621202,0.06064,42426.0,42422.0,0.26919379]
[1644623621401,0.06064,42426.0,42423.0,0.17685142]
[1644623621602,0.06064,42426.0,42423.0,0.11790042]
[1644623621800,0.06064,42426.0,42423.0,0.1181289]
[1644623622402,0.06064,42426.0,42423.0,0.4035812]
[1644623622801,0.06064,42426.0,42424.0,0.058952]
[1644623623003,0.06064,42426.0,42423.0,0.1181289]
[1644623623853,0.07020597,42429.0,42423.0,0.1181289]
[1644623624249,0.058962,42428.0,42423.0,0.1181289]
[1644623625052,0.07020597,42429.0,42423.0,0.1181289]
[1644623625251,0.07020597,42429.0,42424.0,0.05895828]
[1644623625452,0.07020597,42429.0,42426.0,0.058959]
[1644623626354,0.12916697,42429.0,42426.0,0.058959]
[1644623627245,0.07020597,42429.0,42426.0,0.058959]
[1644623627644,0.01,42430.0,42426.0,0.058959]
[1644623628247,0.2348304,42430.0,42426.0,0.058959]
[1644623628844,0.2348304,42430.0,42426.0,0.05918748]
[1644623629246,0.058975,42428.0,42423.0,0.00022848]
[1644623629444,0.058975,42428.0,42422.0,0.118393]
[1644623629445,0.05897455,42427.0,42422.0,0.118393]
[1644623629646,0.29238423,42427.0,42422.0,0.118393]
[1644623629845,0.29238423,42427.0,42422.0,0.11839293]
[1644623630148,0.12229455,42424.0,42422.0,0.11839293]
[1644623630866,0.12229455,42424.0,42422.0,0.117938]
[1644623638004,0.3892375,42424.0,42422.0,0.117938]
[1644623638204,0.3861375,42424.0,42422.0,0.117938]
[1644623639259,0.11919455,42424.0,42422.0,0.117938]
[1644623653368,0.11919455,42424.0,42421.0,0.00068331]
[1644623653369,0.0473,42423.0,42421.0,0.00068331]
[1644623653562,0.058981,42422.0,42421.0,0.00045483]
[1644623653761,0.106281,42422.0,42413.0,0.00022848]
[1644623653962,0.106281,42422.0,42420.0,0.00045483]
[1644623654364,0.117975,42421.0,42420.0,0.00045483]
[1644623654563,0.165275,42421.0,42420.0,0.00045483]
[1644623654964,0.165275,42421.0,42412.0,0.00022848]
[1644623655165,0.058986,42419.0,42418.0,0.00045484]
[1644623655364,0.106286,42419.0,42418.0,0.00045484]
[1644623656063,0.106286,42419.0,42416.0,0.058982]
[1644623656264,0.22625899,42417.0,42416.0,0.00045526]
[1644623656464,0.40166463,42417.0,42416.0,0.00045526]
[1644623657411,0.40166463,42417.0,42414.0,0.00022848]
[1644623657609,0.40166463,42417.0,42415.0,0.058983]
[1644623659312,0.11814328,42424.0,42417.0,0.5]
[1644623659513,0.0573,42430.0,42417.0,0.5]
[1644623659514,0.01,42430.0,42417.0,0.5]
[1644623659713,0.01,42430.0,42418.0,0.058966]
[1644623659714,0.068967,42430.0,42418.0,0.058966]
[1644623659915,0.058964,42426.0,42418.0,0.05964925]
[1644623660312,0.07683926,42422.0,42418.0,0.05964925]
[1644623660514,0.07683926,42422.0,42419.0,0.05896848]
[1644623660714,0.07683926,42422.0,42419.0,0.17713296]
[1644623660961,0.07683926,42422.0,42419.0,0.23609996]
[1644623661556,0.07683926,42422.0,42419.0,0.51963029]
[1644623662157,0.058963,42429.0,42423.0,0.05896266]
[1644623662959,0.058963,42429.0,42424.0,0.058966]
[1644623663560,0.108963,42429.0,42424.0,0.11792764]
[1644623663857,0.058963,42429.0,42424.0,0.11792764]
[1644623664058,0.058963,42429.0,42425.0,0.29176664]
[1644623664261,0.01,42430.0,42425.0,0.29176664]
[1644623664461,0.01,42430.0,42426.0,0.058948]
[1644623665107,0.0001,42430.0,42427.0,0.1248]
[1644623665306,0.0018188,42437.0,42430.0,0.02989999]
[1644623665507,0.0018188,42437.0,42431.0,0.117891]
[1644623665708,0.11812554,42451.0,42432.0,0.28920536]
[1644623665911,0.22874587,42443.0,42435.0,0.05894703]
[1644623666210,0.0880739,42438.0,42435.0,0.05894703]
[1644623667008,0.0880739,42438.0,42437.0,0.058947]
[1644623674016,0.00045472,42440.0,42437.0,0.058947]
[1644623674216,0.26873655,42442.0,42437.0,0.058947]
[1644623674517,0.00045472,42440.0,42437.0,0.058947]
[1644623674916,0.058949,42439.0,42437.0,0.058947]
[1644623675517,0.14330574,42439.0,42437.0,0.058947]
[1644623676561,0.058949,42439.0,42437.0,0.058947]
[1644623679463,0.12250227,42439.0,42437.0,0.058947]
[1644623680611,0.06355327,42439.0,42437.0,0.058947]
[1644623681207,0.06355327,42439.0,42437.0,0.11789147]
[1644623681806,0.06355327,42439.0,42437.0,0.058947]
[1644623683110,0.12250227,42439.0,42437.0,0.058947]
[1644623686063,0.00045472,42440.0,42438.0,0.28767062]
[1644623686266,0.9456,42452.0,42438.0,0.34660762]
[1644623686465,0.11796255,42451.0,42438.0,0.34660762]
[1644623686765,0.00045472,42440.0,42438.0,0.44660762]
[1644623687410,0.07182924,42444.0,42438.0,0.50554416]
[1644623687611,0.07182924,42444.0,42439.0,0.058943]
[1644623687812,0.00045471,42441.0,42439.0,0.058943]
[1644623688714,0.058938,42446.0,42439.0,0.058943]
[1644623688913,0.00045471,42442.0,42441.0,0.05893692]
[1644623689911,0.07751456,42446.0,42442.0,0.058938]
[1644623690114,0.00045471,42444.0,42442.0,0.058938]
[1644623690317,0.00045471,42444.0,42443.0,0.05893729]
[1644623690714,0.00045471,42444.0,42443.0,0.05884597]
[1644623691161,0.2191519,42447.0,42443.0,0.11778297]
[1644623691363,0.117876,42449.0,42443.0,0.11787238]
[1644623691364,0.0004547,42446.0,42443.0,0.11787238]
[1644623691961,0.0004547,42446.0,42443.0,0.058937]
[1644623692362,0.26337562,42452.0,42443.0,0.058937]
[1644623692562,0.07386157,42447.0,42443.0,0.11787309]
[1644623692762,0.07386157,42447.0,42445.0,0.058937]
[1644623693162,0.00045469,42447.0,42445.0,0.058937]
[1644623693564,0.058937,42450.0,42445.0,0.058937]
[1644623693762,0.00045469,42448.0,42445.0,0.058937]
[1644623694610,0.001,42450.0,42445.0,0.058937]
[1644623694810,0.00045468,42449.0,42445.0,0.058937]
[1644623695215,0.058937,42447.0,42445.0,0.058937]
[1644623696318,0.058937,42447.0,42443.0,0.058937]
[1644623696515,0.058953,42445.0,42431.0,0.9762]
[1644623696714,0.0473,42445.0,42432.0,0.78614281]
[1644623696914,0.19340586,42443.0,42432.0,0.5087]
[1644623697214,0.08220591,42436.0,42432.0,0.5087]
[1644623697413,0.08220591,42436.0,42422.0,0.06454428]
[1644623697613,0.08220591,42436.0,42428.0,0.29111333]
[1644623697814,0.08220591,42436.0,42430.0,0.02989999]
[1644623698013,0.08220591,42436.0,42431.0,0.05895207]
[1644623698213,0.058953,42435.0,42431.0,0.05895207]
[1644623698867,0.058953,42435.0,42432.0,0.058952]
[1644623699063,0.058953,42435.0,42432.0,0.1179016]
[1644623699863,0.058953,42435.0,42432.0,0.058952]
[1644623700475,0.058953,42435.0,42432.0,0.11790223]
[1644623700970,0.058949,42437.0,42432.0,0.11790223]
[1644623702109,0.048949,42437.0,42432.0,0.11790223]
[1644623702810,0.048949,42437.0,42432.0,0.058952]
[1644623706163,0.096249,42437.0,42432.0,0.058952]
[1644623706369,0.146249,42437.0,42432.0,0.058952]
[1644623706664,0.058959,42436.0,42432.0,0.058952]
[1644623706860,0.0473,42435.0,42432.0,0.058952]
[1644623707162,0.0473,42435.0,42430.0,0.08886299]
[1644623707962,0.0473,42435.0,42430.0,0.14780799]
[1644623708363,0.00045471,42439.0,42430.0,0.14780799]
[1644623708364,0.00045471,42439.0,42431.0,0.29818818]
[1644623708562,0.00045471,42439.0,42431.0,0.41607218]
[1644623708766,0.00045471,42439.0,42434.0,0.058941]
[1644623709164,0.058942,42442.0,42434.0,0.058941]
[1644623709363,0.00045473,42439.0,42436.0,0.058941]
[1644623710210,0.058942,42442.0,42436.0,0.058941]
[1644623710613,0.00045472,42440.0,42437.0,0.3710895]
[1644623710816,0.00045472,42440.0,42438.0,0.28590417]
[1644623711212,0.00181861,42446.0,42440.0,0.00090943]
[1644623711615,0.001,42450.0,42440.0,0.00090943]
[1644623711813,0.001,42450.0,42441.0,0.05893442]
[1644623712012,0.058934,42448.0,42441.0,0.05893442]
[1644623712212,0.058934,42448.0,42440.0,0.11877555]
[1644623712513,0.058934,42448.0,42440.0,0.00090943]
[1644623712912,0.0002909,42446.0,42440.0,0.00090943]
[1644623713112,0.0002909,42446.0,42443.0,0.058937]
[1644623713113,0.058943,42445.0,42443.0,0.058937]
[1644623723767,0.14116894,42445.0,42443.0,0.058937]
[1644623725411,0.058943,42445.0,42443.0,0.058937]
[1644623727715,0.058938,42445.0,42443.0,0.058937]
[1644623727914,0.00048937,42446.0,42443.0,0.058937]
[1644623728115,0.00048937,42446.0,42443.0,0.1178718]
[1644623728364,0.001,42450.0,42443.0,0.1178718]
[1644623728561,0.001,42450.0,42445.0,0.058936]
[1644623728562,0.00048936,42447.0,42445.0,0.058936]
[1644623728961,0.05942536,42447.0,42445.0,0.058936]
[1644623729563,0.058936,42447.0,42445.0,0.058936]
[1644623731567,0.00048912,42448.0,42445.0,0.058936]
[1644623731969,0.001,42450.0,42445.0,0.058936]
[1644623732210,0.00048912,42449.0,42446.0,0.058934]
[1644623732810,0.058934,42448.0,42446.0,0.058934]
[1644623733211,0.001,42450.0,42447.0,0.3]
[1644623733411,0.00048912,42449.0,42447.0,0.31936894]
[1644623733812,0.00048912,42449.0,42447.0,0.158924]
[1644623734412,0.001,42450.0,42447.0,0.21784193]
[1644623734611,0.00149119,42450.0,42447.0,0.158924]
[1644623734811,0.00149119,42450.0,42447.0,0.058924]
[1644623735412,0.00149119,42450.0,42448.0,0.28373153]
[1644623735612,0.001,42450.0,42448.0,0.40157129]
[1644623737064,0.001,42450.0,42449.0,0.27863558]
[1644623739717,0.001,42450.0,42448.0,0.11783976]
[1644623739917,9.365e-05,42448.0,42441.0,0.06836575]
[1644623740116,9.365e-05,42448.0,42442.0,0.117881]
[1644623740319,0.0473,42447.0,42442.0,0.117881]
[1644623740917,0.10674693,42447.0,42442.0,0.117881]
[1644623741516,0.106244,42447.0,42442.0,0.117881]
[1644623741815,0.37134996,42447.0,42442.0,0.117881]
[1644623742216,0.10673307,42447.0,42442.0,0.117881]
[1644623742818,0.106244,42447.0,42442.0,0.117881]
[1644623743019,0.10673307,42447.0,42442.0,0.117881]
[1644623743965,0.106244,42447.0,42442.0,0.117881]
[1644623744166,0.39646118,42447.0,42442.0,0.117881]
[1644623744963,0.39646118,42447.0,42442.0,0.11778279]
[1644623745165,0.39597211,42447.0,42442.0,0.11778279]
[1644623745364,0.39646211,42447.0,42442.0,0.11778279]
[1644623746365,0.39597211,42447.0,42442.0,0.11744491]
[1644623746566,0.39646211,42447.0,42442.0,0.11744491]
[1644623746768,0.106734,42447.0,42442.0,0.11744491]
[1644623747416,0.04779,42447.0,42443.0,0.05893229]
[1644623747616,0.0473,42447.0,42443.0,0.058932]
[1644623747816,0.04779,42447.0,42443.0,0.058932]
[1644623748716,0.0473,42447.0,42443.0,0.058932]
[1644623749118,0.04779137,42447.0,42443.0,0.11786306]
[1644623749918,0.0473,42447.0,42443.0,0.11786306]
[1644623750120,0.001,42439.0,42437.0,0.12953606]
[1644623751267,0.001,42439.0,42437.0,0.12953695]
[1644623754267,0.001,42439.0,42437.0,0.05893289]
[1644623762311,0.001,42439.0,42437.0,0.11786689]
[1644623762510,0.001,42439.0,42437.0,0.05893289]
[1644623766967,0.001,42439.0,42433.0,0.12731184]
[1644623767167,0.107248,42439.0,42433.0,0.00943]
[1644623767365,0.107248,42439.0,42432.0,0.1223]
[1644623767366,0.058947,42437.0,42432.0,0.1223]
[1644623767565,0.058947,42437.0,42431.0,0.00049134]
[1644623767766,0.176838,42437.0,42431.0,0.00049134]
[1644623767966,0.39139937,42437.0,42429.0,0.1]
[1644623768266,0.058946,42428.0,42426.0,0.1]
[1644623768466,0.27350837,42437.0,42433.0,0.34057362]
[1644623768869,0.28486099,42436.0,42433.0,0.34057362]
[1644623769068,0.39139937,42437.0,42433.0,0.34057362]
[1644623769615,0.0871129,42435.0,42433.0,0.34057362]
[1644623769816,0.0871129,42435.0,42433.0,0.39951931]
[1644623771318,0.058946,42436.0,42433.0,0.39951931]
[1644623771917,0.058946,42436.0,42433.0,0.45846431]
[1644623773220,0.058946,42436.0,42433.0,0.34057362]
[1644623774681,0.058946,42436.0,42433.0,0.45846317]
[1644623774883,0.08240611,42435.0,42433.0,0.45846317]
[1644623775982,0.08240611,42435.0,42433.0,0.39952017]
[1644623776186,0.3473,42434.0,42433.0,0.34057362]
[1644623776385,0.0473,42434.0,42433.0,0.34057362]
[1644623776688,0.0473,42434.0,42422.0,0.00022848]
[1644623776689,0.65,42433.0,42422.0,0.00022848]
[1644623776887,0.0473,42432.0,42420.0,0.11522848]
[1644623777117,0.058968,42422.0,42420.0,0.11522848]
[1644623777319,0.058968,42422.0,42419.0,0.39232848]
[1644623777517,0.058967,42424.0,42417.0,0.00022848]
[1644623777818,0.117936,42421.0,42417.0,0.00022848]
[1644623778216,0.117936,42421.0,42416.0,0.23158529]
[1644623778416,0.112936,42421.0,42416.0,0.00022848]
[1644623778618,0.112936,42421.0,42416.0,0.009433]
[1644623778818,0.112936,42421.0,42417.0,0.058964]
[1644623779220,0.112936,42421.0,42417.0,0.05919248]
[1644623779919,0.112936,42421.0,42418.0,0.05896424]
[1644623780119,0.112936,42421.0,42418.0,0.05919272]
[1644623780419,0.112936,42421.0,42418.0,0.00022848]
[1644623780621,0.112936,42421.0,42416.0,0.009433]
[1644623780622,0.762936,42421.0,42416.0,0.009433]
[1644623780876,0.82191661,42421.0,42416.0,0.009433]
[1644623781174,0.058983,42420.0,42409.0,0.0002325]
[1644623781472,0.058983,42420.0,42416.0,0.0005294]
[1644623781670,0.32548694,42419.0,42416.0,0.0005294]
[1644623781874,0.176924,42418.0,42416.0,0.0005294]
[1644623782371,0.176924,42418.0,42412.0,0.0002325]
[1644623782571,0.176924,42418.0,42415.0,0.0005294]
[1644623782773,0.35534579,42417.0,42415.0,0.0005294]
[1644623782973,0.28534883,42416.0,42415.0,0.0005294]
[1644623783372,0.53242811,42416.0,42415.0,0.0005294]
[1644623783572,0.53242811,42416.0,42409.0,0.0589771]
[1644623783774,0.08885304,42411.0,42405.0,0.058979]
[1644623783975,0.058978,42410.0,42407.0,0.0002325]
[1644623784174,0.058978,42410.0,42405.0,0.0592115]
[1644623785018,0.058978,42410.0,42407.0,0.05897971]
[1644623785219,0.058978,42410.0,42408.0,0.058977]
[1644623786019,0.058978,42410.0,42407.0,0.05921221]
[1644623786219,0.058978,42410.0,42407.0,0.05950915]
[1644623786519,0.058978,42410.0,42408.0,0.009435]
[1644623786719,0.058978,42410.0,42407.0,0.05974165]
[1644623786923,0.058978,42410.0,42407.0,0.00052944]
[1644623787119,0.28863097,42409.0,42407.0,0.00052944]
[1644623787320,0.0473,42408.0,42403.0,0.0002325]
[1644623787621,0.40212501,42403.0,42402.0,0.0002325]
[1644623787821,0.39712501,42403.0,42401.0,0.0102325]
[1644623788020,0.0473,42404.0,42401.0,0.0102325]
[1644623788219,0.0473,42404.0,42401.0,0.01]
[1644623788481,0.106296,42404.0,42401.0,0.01]
[1644623789278,0.106296,42404.0,42401.0,0.0102325]
[1644623789482,0.058996,42404.0,42401.0,0.0102325]
[1644623793323,0.32761279,42404.0,42401.0,0.0102325]
[1644623794526,0.32761279,42404.0,42401.0,0.0002325]
[1644623794729,0.058996,42404.0,42400.0,0.02873533]
[1644623795625,0.058996,42404.0,42400.0,0.02820627]
[1644623795876,0.058996,42404.0,42400.0,0.02873533]
[1644623796071,0.058996,42404.0,42400.0,0.0877231]
[1644623796471,0.058996,42404.0,42400.0,0.1467041]
[1644623796872,0.058996,42404.0,42400.0,0.14617504]
[1644623797071,0.058996,42404.0,42400.0,0.1467041]
[1644623797872,0.058996,42404.0,42400.0,0.0877231]
[1644623798071,0.058996,42404.0,42400.0,0.09663004]
[1644623798271,0.058996,42404.0,42400.0,0.09711855]
[1644623798471,0.11949385,42410.0,42402.0,0.058981]
[1644623798672,0.11949385,42410.0,42404.0,0.0589794]
[1644623798972,0.16949385,42410.0,42404.0,0.0589794]
[1644623799372,0.16949385,42410.0,42404.0,0.0594679]
[1644623799817,0.16949385,42410.0,42404.0,0.1184479]
[1644623800015,0.05898,42409.0,42405.0,0.05898089]
[1644623800522,0.117968,42415.0,42408.0,0.06466956]
[1644623800720,0.0019533,42419.0,42412.0,0.05]
[1644623800919,0.0019533,42419.0,42413.0,0.106263]
[1644623801116,0.0019533,42419.0,42414.0,0.05895345]
[1644623801316,0.0019533,42419.0,42415.0,0.0473]
[1644623801717,0.117907,42425.0,42415.0,0.0473]
[1644623801916,0.00048837,42421.0,42417.0,0.058961]
[1644623802117,0.00048837,42421.0,42418.0,0.0473]
[1644623802419,0.00048837,42421.0,42418.0,2.47655881]
[1644623802616,0.23807603,42420.0,42418.0,2.47655881]
[1644623802815,0.23807603,42420.0,42418.0,2.57655881]
[1644623803017,0.23807603,42420.0,42419.0,0.28127167]
[1644623803216,0.23807603,42420.0,42419.0,0.38753067]
[1644623803669,0.00049106,42422.0,42419.0,0.4464863]
[1644623803873,0.00049106,42422.0,42420.0,0.058957]
[1644623804069,0.07696272,42426.0,42420.0,0.058957]
[1644623804269,0.07696272,42426.0,42421.0,0.0473]
[1644623804470,0.00049106,42423.0,42421.0,0.0473]
[1644623804669,0.00049106,42423.0,42422.0,0.33911559]
[1644623805273,0.012,42432.0,42422.0,0.48641559]
[1644623805473,0.012,42432.0,42424.0,0.07326966]
[1644623805672,0.012,42432.0,42425.0,0.0473]
[1644623805872,0.012,42432.0,42425.0,0.10623732]
[1644623806270,0.012,42432.0,42426.0,0.058939]
[1644623806470,0.012,42432.0,42426.0,0.106239]
[1644623806668,0.00049084,42431.0,42426.0,0.106239]
[1644623807420,0.00049084,42431.0,42427.0,0.058943]
[1644623807623,0.012,42432.0,42427.0,0.058943]
[1644623807822,0.012,42432.0,42428.0,0.11788956]
[1644623808023,0.00049084,42431.0,42428.0,0.11788956]
[1644623808222,0.00049084,42431.0,42429.0,0.058945]
[1644623808822,0.012,42432.0,42429.0,0.058945]
[1644623809222,0.01249083,42432.0,42429.0,0.058945]
[1644623809423,0.01249083,42432.0,42429.0,0.11788758]
[1644623810125,0.012,42432.0,42429.0,0.11788758]
[1644623811574,0.012,42432.0,42430.0,0.0473]
[1644623811873,0.012,42432.0,42431.0,0.32049808]
[1644623812071,0.012,42432.0,42431.0,0.36779808]
[1644623812272,0.012,42432.0,42431.0,0.46779808]
[1644623817023,0.012,42432.0,42431.0,0.1473]
[1644623817421,0.012,42432.0,42431.0,0.0473]
[1644623820079,0.012,42432.0,42431.0,0.2873]
[1644623821779,0.012,42432.0,42431.0,0.5700667]
[1644623822219,0.012,42432.0,42431.0,0.6700667]
[1644623823621,0.012,42432.0,42431.0,0.3873]
[1644623823820,0.012,42432.0,42431.0,0.2873]
[1644623824020,0.012,42432.0,42431.0,0.3873]
[1644623824220,0.012,42432.0,42431.0,0.38723348]
[1644623825222,0.012,42432.0,42431.0,0.28723348]
[1644623828476,0.13350933,42437.0,42435.0,0.58172548]
[1644623828675,0.058937,42437.0,42435.0,0.69959948]
[1644623829276,0.058937,42437.0,42435.0,0.79959948]
[1644623829921,0.00541631,42437.0,42435.0,0.79959948]
[1644623830121,0.001,42439.0,42437.0,0.08026417]
[1644623831220,0.001,42439.0,42437.0,0.05893673]
[1644623832023,0.001,42439.0,42437.0,0.11787173]
[1644623833478,0.001,42439.0,42437.0,0.05893673]
[1644623835080,0.001,42439.0,42437.0,0.05352311]
[1644623835479,0.001,42439.0,42435.0,0.64066664]
[1644623835681,0.058946,42437.0,42435.0,0.64066664]
[1644623838626,0.058946,42437.0,42435.0,0.69961064]
[1644623839525,0.0814113,42436.0,42435.0,0.69961064]
[1644623845324,0.0814113,42436.0,42435.0,0.52278909]
[1644623845624,0.0814113,42436.0,42426.0,0.165188]
[1644623845625,0.758957,42435.0,42427.0,0.309431]
[1644623845823,0.0473,42434.0,42427.0,0.009431]
[1644623846026,0.108964,42432.0,42427.0,0.009431]
[1644623846225,0.058965,42431.0,42427.0,0.009431]
[1644623846423,0.27835317,42431.0,42427.0,0.009431]
[1644623846622,0.33731817,42431.0,42427.0,0.009431]
[1644623846823,0.27835317,42431.0,42427.0,0.009431]
[1644623847222,0.058966,42430.0,42427.0,0.009431]
[1644623847622,0.117932,42430.0,42427.0,0.009431]
[1644623847824,0.05,42428.0,42427.0,0.009431]
[1644623848025,0.2830808,42428.0,42427.0,0.009431]
[1644623848225,0.19955027,42424.0,42419.0,0.00023234]
[1644623848492,0.25851927,42424.0,42418.0,0.00023234]
[1644623848692,0.25851927,42424.0,42418.0,0.00052899]